[Event "Titled Tuesday Blitz April 19 Late 2022"]
[White "Peatman, Carter"]
[Black "Ostrovskiy, Aleksandr"]
[WhiteFideId "2096480"]
[BlackFideId "2034239"]
[WhiteElo "2473"]
[BlackElo "2340"]
[Result "0-1"]
[Round "01"]
[TimeControl "180+1"]
[Date "2022.04.19"]
[WhiteClock "0:00:33"]
[BlackClock "0:01:19"]

1. e4 {[%clk 0:02:57]}  d5 {[%clk 0:02:56]} 2. exd5 {[%clk 0:02:57]}  Nf6 {[%clk 0:02:54]} 3. d4 {[%clk 0:02:53]}  Bg4 {[%clk 0:02:54]} 4. Be2 {[%clk 0:02:49]}  Bxe2 {[%clk 0:02:54]} 5. Qxe2 {[%clk 0:02:42]}  Qxd5 {[%clk 0:02:55]} 6. Nf3 {[%clk 0:02:41]}  e6 {[%clk 0:02:52]} 7. O-O {[%clk 0:02:39]}  Nc6 {[%clk 0:02:52]} 8. Rd1 {[%clk 0:02:35]}  O-O-O {[%clk 0:02:51]} 9. c4 {[%clk 0:02:33]}  Qh5 {[%clk 0:02:51]} 10. Be3 {[%clk 0:02:24]}  Rg8 {[%clk 0:02:47]} 11. Nc3 {[%clk 0:02:22]}  g5 {[%clk 0:02:44]} 12. Ne5 {[%clk 0:01:43]}  Qxe2 {[%clk 0:02:38]} 13. Nxe2 {[%clk 0:01:43]}  Nxe5 {[%clk 0:02:38]} 14. dxe5 {[%clk 0:01:44]}  Nd7 {[%clk 0:02:33]} 15. Nc3 {[%clk 0:01:18]}  Bg7 {[%clk 0:02:17]} 16. Bxg5 {[%clk 0:01:12]}  Rde8 {[%clk 0:02:17]} 17. f4 {[%clk 0:01:09]}  Bxe5 {[%clk 0:02:12]} 18. Rac1 {[%clk 0:01:02]}  Bd6 {[%clk 0:02:09]} 19. Ne4 {[%clk 0:00:57]}  Be7 {[%clk 0:01:47]} 20. a3 {[%clk 0:00:39]}  f6 {[%clk 0:01:32]} 21. Bh4 {[%clk 0:00:40]}  f5 {[%clk 0:01:18]} 22. Bxe7 {[%clk 0:00:39]}  Rxe7 {[%clk 0:01:19]} 23. Nc5 {[%clk 0:00:33]}  Nxc5 {[%clk 0:01:19]} 0-1


[Site "https://www.chess.com"]

[Event "Titled Tuesday Blitz April 19 Late 2022"]
[White "Perrine, Dalton"]
[Black "Sanal, Vahap"]
[WhiteFideId "2048434"]
[BlackFideId "6300545"]
[WhiteElo "2451"]
[BlackElo "2603"]
[Result "1-0"]
[Round "01"]
[TimeControl "180+1"]
[Date "2022.04.19"]
[WhiteClock "0:00:05"]
[BlackClock "0:00:16"]

1. Nf3 {[%clk 0:02:54]}  g6 {[%clk 0:02:58]} 2. e4 {[%clk 0:02:54]}  Bg7 {[%clk 0:02:59]} 3. d4 {[%clk 0:02:54]}  d6 {[%clk 0:02:59]} 4. c3 {[%clk 0:02:55]}  Nf6 {[%clk 0:02:59]} 5. Bd3 {[%clk 0:02:55]}  O-O {[%clk 0:03:00]} 6. O-O {[%clk 0:02:56]}  e5 {[%clk 0:03:01]} 7. Re1 {[%clk 0:02:51]}  Nbd7 {[%clk 0:03:01]} 8. h3 {[%clk 0:02:51]}  b6 {[%clk 0:02:50]} 9. Be3 {[%clk 0:02:49]}  Bb7 {[%clk 0:02:50]} 10. Nbd2 {[%clk 0:02:50]}  Re8 {[%clk 0:02:48]} 11. d5 {[%clk 0:02:49]}  Nc5 {[%clk 0:02:47]} 12. Bc2 {[%clk 0:02:28]}  a5 {[%clk 0:02:48]} 13. b4 {[%clk 0:02:26]}  Ncd7 {[%clk 0:02:43]} 14. Ba4 {[%clk 0:02:21]}  Rf8 {[%clk 0:02:42]} 15. a3 {[%clk 0:02:19]}  Nh5 {[%clk 0:02:26]} 16. Nf1 {[%clk 0:02:00]}  Nf4 {[%clk 0:02:13]} 17. Ng3 {[%clk 0:01:19]}  h6 {[%clk 0:02:02]} 18. Rc1 {[%clk 0:01:12]}  axb4 {[%clk 0:01:49]} 19. axb4 {[%clk 0:01:12]}  Nd3 {[%clk 0:01:43]} 20. Qxd3 {[%clk 0:00:59]}  Rxa4 {[%clk 0:01:42]} 21. Qb5 {[%clk 0:00:59]}  Ra3 {[%clk 0:01:30]} 22. Qd3 {[%clk 0:00:29]}  Ba6 {[%clk 0:01:24]} 23. Qb1 {[%clk 0:00:28]}  Bc8 {[%clk 0:01:24]} 24. Qb2 {[%clk 0:00:26]}  Ra8 {[%clk 0:01:24]} 25. Ra1 {[%clk 0:00:26]}  Rxa1 {[%clk 0:01:24]} 26. Rxa1 {[%clk 0:00:27]}  f5 {[%clk 0:01:24]} 27. Ne2 {[%clk 0:00:20]}  f4 {[%clk 0:01:24]} 28. Bc1 {[%clk 0:00:14]}  g5 {[%clk 0:01:25]} 29. Ne1 {[%clk 0:00:08]}  Nf6 {[%clk 0:01:24]} 30. f3 {[%clk 0:00:08]}  h5 {[%clk 0:01:19]} 31. Nd3 {[%clk 0:00:07]}  g4 {[%clk 0:01:20]} 32. Nf2 {[%clk 0:00:08]}  gxf3 {[%clk 0:01:19]} 33. gxf3 {[%clk 0:00:08]}  Nh7 {[%clk 0:01:19]} 34. Kh2 {[%clk 0:00:07]}  Ng5 {[%clk 0:01:18]} 35. Ng1 {[%clk 0:00:06]}  Nf7 {[%clk 0:01:16]} 36. Qe2 {[%clk 0:00:06]}  Qh4 {[%clk 0:01:17]} 37. Nh1 {[%clk 0:00:07]}  Kh8 {[%clk 0:01:10]} 38. Bd2 {[%clk 0:00:07]}  Rg8 {[%clk 0:01:10]} 39. Be1 {[%clk 0:00:07]}  Qg5 {[%clk 0:01:10]} 40. Qg2 {[%clk 0:00:06]}  Qh6 {[%clk 0:01:10]} 41. Qf2 {[%clk 0:00:07]}  Bf6 {[%clk 0:01:10]} 42. Ra7 {[%clk 0:00:07]}  Bd8 {[%clk 0:01:09]} 43. c4 {[%clk 0:00:07]}  h4 {[%clk 0:01:09]} 44. Ne2 {[%clk 0:00:05]}  Kh7 {[%clk 0:01:04]} 45. c5 {[%clk 0:00:05]}  bxc5 {[%clk 0:01:03]} 46. bxc5 {[%clk 0:00:06]}  Rg3 {[%clk 0:00:58]} 47. cxd6 {[%clk 0:00:05]}  Qxd6 {[%clk 0:00:58]} 48. Nhxg3 {[%clk 0:00:04]}  hxg3+ {[%clk 0:00:58]} 49. Nxg3 {[%clk 0:00:04]}  fxg3+ {[%clk 0:00:58]} 50. Qxg3 {[%clk 0:00:05]}  Bg5 {[%clk 0:00:54]} 51. Kh1 {[%clk 0:00:02]}  Qc5 {[%clk 0:00:53]} 52. Ra2 {[%clk 0:00:02]}  Qc1 {[%clk 0:00:50]} 53. Rg2 {[%clk 0:00:02]}  Qf4 {[%clk 0:00:42]} 54. h4 {[%clk 0:00:03]}  Qxg3 {[%clk 0:00:41]} 55. Bxg3 {[%clk 0:00:04]}  Be3 {[%clk 0:00:40]} 56. Kh2 {[%clk 0:00:04]}  Bb6 {[%clk 0:00:39]} 57. Rc2 {[%clk 0:00:05]}  Kg7 {[%clk 0:00:37]} 58. Bf2 {[%clk 0:00:05]}  Ba5 {[%clk 0:00:34]} 59. Rc5 {[%clk 0:00:05]}  Bb6 {[%clk 0:00:31]} 60. Rc2 {[%clk 0:00:05]}  Bd7 {[%clk 0:00:29]} 61. Bxb6 {[%clk 0:00:05]}  cxb6 {[%clk 0:00:30]} 62. Rc7 {[%clk 0:00:05]}  Be8 {[%clk 0:00:30]} 63. d6 {[%clk 0:00:06]}  Ba4 {[%clk 0:00:26]} 64. Rb7 {[%clk 0:00:05]}  b5 {[%clk 0:00:21]} 65. h5 {[%clk 0:00:05]}  Bd1 {[%clk 0:00:17]} 66. h6+ {[%clk 0:00:04]}  Kg6 {[%clk 0:00:17]} 67. Rxf7 {[%clk 0:00:04]}  Kxf7 {[%clk 0:00:16]} 68. h7 {[%clk 0:00:05]}  Kg7 {[%clk 0:00:16]} 69. d7 {[%clk 0:00:05]} 1-0


[Site "https://www.chess.com"]

[Event "Titled Tuesday Blitz April 19 Late 2022"]
[White "Pesotskiy, Mikhail"]
[Black "Safarli, Eltaj"]
[WhiteFideId "34164453"]
[BlackFideId "13402129"]
[WhiteElo "2010"]
[BlackElo "2634"]
[Result "1/2-1/2"]
[Round "01"]
[TimeControl "180+1"]
[Date "2022.04.19"]
[WhiteClock "0:00:14"]
[BlackClock "0:00:44"]

1. d4 {[%clk 0:02:59]}  Nf6 {[%clk 0:02:59]} 2. c4 {[%clk 0:02:59]}  g6 {[%clk 0:02:58]} 3. Nc3 {[%clk 0:03:00]}  d5 {[%clk 0:02:58]} 4. Bg5 {[%clk 0:03:00]}  Ne4 {[%clk 0:02:50]} 5. Nxe4 {[%clk 0:03:00]}  dxe4 {[%clk 0:02:50]} 6. Qd2 {[%clk 0:03:01]}  Bg7 {[%clk 0:02:49]} 7. e3 {[%clk 0:03:01]}  h6 {[%clk 0:02:47]} 8. Bh4 {[%clk 0:03:01]}  c5 {[%clk 0:02:47]} 9. d5 {[%clk 0:03:01]}  g5 {[%clk 0:02:44]} 10. Bg3 {[%clk 0:03:01]}  Qb6 {[%clk 0:02:44]} 11. Rb1 {[%clk 0:03:02]}  Bf5 {[%clk 0:02:42]} 12. Ne2 {[%clk 0:03:02]}  Nd7 {[%clk 0:02:39]} 13. Nc3 {[%clk 0:03:02]}  Ne5 {[%clk 0:02:37]} 14. Be2 {[%clk 0:03:01]}  O-O {[%clk 0:02:37]} 15. O-O {[%clk 0:02:55]}  Qb4 {[%clk 0:02:37]} 16. Bxe5 {[%clk 0:02:54]}  Bxe5 {[%clk 0:02:36]} 17. Qc2 {[%clk 0:02:55]}  Qa5 {[%clk 0:02:21]} 18. a3 {[%clk 0:02:35]}  Bxc3 {[%clk 0:02:21]} 19. Qxc3 {[%clk 0:02:34]}  Qxc3 {[%clk 0:02:21]} 20. bxc3 {[%clk 0:02:35]}  b6 {[%clk 0:02:21]} 21. Rbd1 {[%clk 0:02:24]}  Rfd8 {[%clk 0:02:18]} 22. f3 {[%clk 0:02:24]}  Rd6 {[%clk 0:02:08]} 23. fxe4 {[%clk 0:02:08]}  Bxe4 {[%clk 0:02:09]} 24. Bd3 {[%clk 0:02:08]}  Bxd3 {[%clk 0:02:03]} 25. Rxd3 {[%clk 0:02:09]}  e6 {[%clk 0:02:03]} 26. e4 {[%clk 0:02:09]}  exd5 {[%clk 0:02:03]} 27. cxd5 {[%clk 0:01:11]}  Re8 {[%clk 0:02:02]} 28. Re1 {[%clk 0:01:12]}  Re5 {[%clk 0:01:59]} 29. c4 {[%clk 0:01:10]}  f5 {[%clk 0:01:57]} 30. g3 {[%clk 0:01:04]}  Rd8 {[%clk 0:01:50]} 31. Rde3 {[%clk 0:00:58]}  Rde8 {[%clk 0:01:49]} 32. Kf2 {[%clk 0:00:54]}  fxe4 {[%clk 0:01:48]} 33. a4 {[%clk 0:00:52]}  Kf7 {[%clk 0:01:48]} 34. Ke2 {[%clk 0:00:51]}  Rf5 {[%clk 0:01:43]} 35. Kd1 {[%clk 0:00:20]}  Rfe5 {[%clk 0:01:29]} 36. Rf1+ {[%clk 0:00:17]}  Ke7 {[%clk 0:01:29]} 37. Kd2 {[%clk 0:00:15]}  Rf8 {[%clk 0:01:25]} 38. Ree1 {[%clk 0:00:16]}  e3+ {[%clk 0:01:23]} 39. Kd3 {[%clk 0:00:15]}  Rxf1 {[%clk 0:01:13]} 40. Rxf1 {[%clk 0:00:16]}  Kd6 {[%clk 0:01:13]} 41. Re1 {[%clk 0:00:16]}  Rf5 {[%clk 0:01:13]} 42. Rxe3 {[%clk 0:00:16]}  h5 {[%clk 0:01:07]} 43. Re6+ {[%clk 0:00:16]}  Kd7 {[%clk 0:01:08]} 44. Rh6 {[%clk 0:00:17]}  g4 {[%clk 0:01:08]} 45. Rh7+ {[%clk 0:00:17]}  Kd6 {[%clk 0:01:08]} 46. Rxa7 {[%clk 0:00:18]}  Rf2 {[%clk 0:01:06]} 47. Rb7 {[%clk 0:00:16]}  Rxh2 {[%clk 0:00:58]} 48. Rxb6+ {[%clk 0:00:16]}  Kd7 {[%clk 0:00:58]} 49. Rh6 {[%clk 0:00:13]}  Ra2 {[%clk 0:00:51]} 50. Rxh5 {[%clk 0:00:13]}  Rxa4 {[%clk 0:00:51]} 51. Rh7+ {[%clk 0:00:10]}  Kd6 {[%clk 0:00:51]} 52. Rh6+ {[%clk 0:00:11]}  Kd7 {[%clk 0:00:51]} 53. Rh7+ {[%clk 0:00:11]}  Kd6 {[%clk 0:00:51]} 54. Rh6+ {[%clk 0:00:12]}  Kd7 {[%clk 0:00:52]} 55. Rc6 {[%clk 0:00:12]}  Ra3+ {[%clk 0:00:51]} 56. Ke4 {[%clk 0:00:13]}  Rxg3 {[%clk 0:00:51]} 57. Rxc5 {[%clk 0:00:12]}  Rc3 {[%clk 0:00:52]} 58. Rc6 {[%clk 0:00:12]}  g3 {[%clk 0:00:51]} 59. Ke5 {[%clk 0:00:11]}  g2 {[%clk 0:00:50]} 60. Rg6 {[%clk 0:00:12]}  Rxc4 {[%clk 0:00:50]} 61. Rxg2 {[%clk 0:00:12]}  Rh4 {[%clk 0:00:50]} 62. Rg7+ {[%clk 0:00:13]}  Kd8 {[%clk 0:00:50]} 63. Rg6 {[%clk 0:00:12]}  Kd7 {[%clk 0:00:49]} 64. Rg7+ {[%clk 0:00:13]}  Kd8 {[%clk 0:00:49]} 65. Kd6 {[%clk 0:00:13]}  Rh6+ {[%clk 0:00:49]} 66. Kc5 {[%clk 0:00:13]}  Rf6 {[%clk 0:00:49]} 67. Ra7 {[%clk 0:00:13]}  Rh6 {[%clk 0:00:49]} 68. Ra8+ {[%clk 0:00:13]}  Kd7 {[%clk 0:00:49]} 69. Ra7+ {[%clk 0:00:14]}  Kd8 {[%clk 0:00:49]} 70. Rg7 {[%clk 0:00:15]}  Rf6 {[%clk 0:00:49]} 71. Kd4 {[%clk 0:00:15]}  Rh6 {[%clk 0:00:48]} 72. Ke5 {[%clk 0:00:15]}  Ke8 {[%clk 0:00:48]} 73. Rc7 {[%clk 0:00:14]}  Kd8 {[%clk 0:00:48]} 74. Rc1 {[%clk 0:00:13]}  Rh5+ {[%clk 0:00:47]} 75. Kd6 {[%clk 0:00:13]}  Rh6+ {[%clk 0:00:47]} 76. Kc5 {[%clk 0:00:13]}  Kd7 {[%clk 0:00:46]} 77. Rg1 {[%clk 0:00:14]}  Rf6 {[%clk 0:00:44]} 78. Rg7+ {[%clk 0:00:14]}  Kd8 {[%clk 0:00:44]} 1/2-1/2


[Site "https://www.chess.com"]

[Event "Titled Tuesday Blitz April 19 Late 2022"]
[White "Petrovskyi, Vadym"]
[Black "Zlatin, Alexander"]
[WhiteFideId "14165210"]
[BlackFideId "2810549"]
[WhiteElo "2400"]
[BlackElo "2228"]
[Result "1/2-1/2"]
[Round "01"]
[TimeControl "180+1"]
[Date "2022.04.19"]
[WhiteClock "0:00:30"]
[BlackClock "0:00:16"]

1. e4 {[%clk 0:02:58]}  e5 {[%clk 0:02:59]} 2. Nf3 {[%clk 0:02:57]}  Nc6 {[%clk 0:03:00]} 3. d4 {[%clk 0:02:57]}  exd4 {[%clk 0:02:59]} 4. Bc4 {[%clk 0:02:58]}  Bc5 {[%clk 0:02:59]} 5. c3 {[%clk 0:02:58]}  Nf6 {[%clk 0:02:58]} 6. e5 {[%clk 0:02:57]}  d5 {[%clk 0:02:58]} 7. Bb5 {[%clk 0:02:57]}  Ne4 {[%clk 0:02:58]} 8. cxd4 {[%clk 0:02:58]}  Bb6 {[%clk 0:02:54]} 9. Nc3 {[%clk 0:02:54]}  O-O {[%clk 0:02:53]} 10. h3 {[%clk 0:02:51]}  Bf5 {[%clk 0:02:49]} 11. O-O {[%clk 0:02:48]}  h6 {[%clk 0:02:43]} 12. Be3 {[%clk 0:02:48]}  Ne7 {[%clk 0:02:43]} 13. Rc1 {[%clk 0:02:47]}  c6 {[%clk 0:02:42]} 14. Bd3 {[%clk 0:02:47]}  Nxc3 {[%clk 0:02:38]} 15. bxc3 {[%clk 0:02:45]}  Qd7 {[%clk 0:02:32]} 16. Ne1 {[%clk 0:02:43]}  f6 {[%clk 0:02:18]} 17. exf6 {[%clk 0:02:37]}  Rxf6 {[%clk 0:02:15]} 18. Bf4 {[%clk 0:02:26]}  Raf8 {[%clk 0:02:07]} 19. Be5 {[%clk 0:02:22]}  Rg6 {[%clk 0:02:03]} 20. Kh2 {[%clk 0:01:59]}  Bc7 {[%clk 0:01:57]} 21. f4 {[%clk 0:01:59]}  Bxd3 {[%clk 0:01:51]} 22. Nxd3 {[%clk 0:01:58]}  Nf5 {[%clk 0:01:47]} 23. Qe1 {[%clk 0:01:51]}  Ng3 {[%clk 0:01:37]} 24. Rf3 {[%clk 0:01:39]}  Ne4 {[%clk 0:01:31]} 25. c4 {[%clk 0:01:32]}  Bd8 {[%clk 0:01:26]} 26. cxd5 {[%clk 0:01:29]}  cxd5 {[%clk 0:01:27]} 27. Nc5 {[%clk 0:01:18]}  Nxc5 {[%clk 0:01:22]} 28. dxc5 {[%clk 0:01:19]}  Bc7 {[%clk 0:01:13]} 29. Rd1 {[%clk 0:01:16]}  Re6 {[%clk 0:01:06]} 30. Re3 {[%clk 0:01:04]}  Rxf4 {[%clk 0:00:54]} 31. Bxc7 {[%clk 0:00:52]}  Rxe3 {[%clk 0:00:47]} 32. Qxe3 {[%clk 0:00:53]}  Qxc7 {[%clk 0:00:46]} 33. Qg3 {[%clk 0:00:49]}  Rf7 {[%clk 0:00:40]} 34. Rxd5 {[%clk 0:00:48]}  Qxg3+ {[%clk 0:00:38]} 35. Kxg3 {[%clk 0:00:48]}  Rc7 {[%clk 0:00:37]} 36. Kf4 {[%clk 0:00:49]}  Kf7 {[%clk 0:00:37]} 37. Ke5 {[%clk 0:00:49]}  Ke7 {[%clk 0:00:36]} 38. a4 {[%clk 0:00:48]}  Rc6 {[%clk 0:00:35]} 39. Kd4 {[%clk 0:00:45]}  Ra6 {[%clk 0:00:33]} 40. Re5+ {[%clk 0:00:43]}  Kf6 {[%clk 0:00:32]} 41. Re8 {[%clk 0:00:37]}  Rxa4+ {[%clk 0:00:30]} 42. Kd5 {[%clk 0:00:38]}  Ra1 {[%clk 0:00:27]} 43. Rb8 {[%clk 0:00:38]}  Rd1+ {[%clk 0:00:25]} 44. Ke4 {[%clk 0:00:37]}  Rd7 {[%clk 0:00:24]} 45. h4 {[%clk 0:00:34]}  a6 {[%clk 0:00:23]} 46. g3 {[%clk 0:00:34]}  Ke6 {[%clk 0:00:23]} 47. Re8+ {[%clk 0:00:32]}  Re7 {[%clk 0:00:22]} 48. Rb8 {[%clk 0:00:32]}  Rc7 {[%clk 0:00:19]} 49. Kd4 {[%clk 0:00:32]}  Kf5 {[%clk 0:00:17]} 50. Kd5 {[%clk 0:00:30]}  Kg4 {[%clk 0:00:17]} 51. Kd6 {[%clk 0:00:31]}  Rc6+ {[%clk 0:00:18]} 52. Kd5 {[%clk 0:00:31]}  Rc7 {[%clk 0:00:18]} 53. Kd6 {[%clk 0:00:32]}  Rf7 {[%clk 0:00:18]} 54. Ke6 {[%clk 0:00:32]}  Rf6+ {[%clk 0:00:18]} 55. Kd5 {[%clk 0:00:30]}  Rf7 {[%clk 0:00:18]} 56. Ke6 {[%clk 0:00:30]}  Rc7 {[%clk 0:00:16]} 57. Kd6 {[%clk 0:00:30]} 1/2-1/2


[Site "https://www.chess.com"]

[Event "Titled Tuesday Blitz April 19 Late 2022"]
[White "Piliczewski, Bogusz"]
[Black "Barria Zuniga, Daniel"]
[WhiteFideId "1104144"]
[BlackFideId "3400816"]
[WhiteElo "1896"]
[BlackElo "2414"]
[Result "0-1"]
[Round "01"]
[TimeControl "180+1"]
[Date "2022.04.19"]
[WhiteClock "0:01:43"]
[BlackClock "0:02:11"]

1. d4 {[%clk 0:02:59]}  g6 {[%clk 0:02:56]} 2. Nf3 {[%clk 0:02:58]}  Bg7 {[%clk 0:02:56]} 3. Bf4 {[%clk 0:02:58]}  c5 {[%clk 0:02:56]} 4. c3 {[%clk 0:02:56]}  Nf6 {[%clk 0:02:57]} 5. e3 {[%clk 0:02:55]}  O-O {[%clk 0:02:57]} 6. h3 {[%clk 0:02:54]}  d6 {[%clk 0:02:57]} 7. Be2 {[%clk 0:02:54]}  Nc6 {[%clk 0:02:58]} 8. O-O {[%clk 0:02:54]}  Be6 {[%clk 0:02:58]} 9. Nbd2 {[%clk 0:02:53]}  Qb6 {[%clk 0:02:58]} 10. Qc1 {[%clk 0:02:42]}  Rac8 {[%clk 0:02:56]} 11. Nc4 {[%clk 0:02:36]}  Bxc4 {[%clk 0:02:52]} 12. Bxc4 {[%clk 0:02:36]}  cxd4 {[%clk 0:02:44]} 13. exd4 {[%clk 0:02:32]}  Nxd4 {[%clk 0:02:33]} 14. Bxf7+ {[%clk 0:02:31]}  Rxf7 {[%clk 0:02:28]} 15. Nxd4 {[%clk 0:02:31]}  e5 {[%clk 0:02:27]} 16. Be3 {[%clk 0:02:08]}  exd4 {[%clk 0:02:25]} 17. Bxd4 {[%clk 0:02:09]}  Qc6 {[%clk 0:02:23]} 18. Re1 {[%clk 0:02:01]}  Nd5 {[%clk 0:02:17]} 19. Qd1 {[%clk 0:01:51]}  Nf4 {[%clk 0:02:14]} 20. Bxg7 {[%clk 0:01:43]}  Qxg2# {[%clk 0:02:11]} 0-1


[Site "https://www.chess.com"]

[Event "Titled Tuesday Blitz April 19 Late 2022"]
[White "Plotnikov, Pavel"]
[Black "Nakamura, Hikaru"]
[WhiteFideId "4170342"]
[BlackFideId "2016192"]
[WhiteElo "2298"]
[BlackElo "2850"]
[Result "0-1"]
[Round "01"]
[TimeControl "180+1"]
[Date "2022.04.19"]
[WhiteClock "0:00:07"]
[BlackClock "0:00:47"]

1. e4 {[%clk 0:02:59]}  g6 {[%clk 0:02:59]} 2. d4 {[%clk 0:02:59]}  Bg7 {[%clk 0:02:59]} 3. Nc3 {[%clk 0:03:00]}  a6 {[%clk 0:02:59]} 4. a4 {[%clk 0:02:59]}  b6 {[%clk 0:02:59]} 5. h4 {[%clk 0:02:59]}  h5 {[%clk 0:02:58]} 6. Nf3 {[%clk 0:02:58]}  Bb7 {[%clk 0:02:58]} 7. Ng5 {[%clk 0:02:55]}  e6 {[%clk 0:02:58]} 8. Qf3 {[%clk 0:02:51]}  Nh6 {[%clk 0:02:55]} 9. Be3 {[%clk 0:02:49]}  Nc6 {[%clk 0:02:51]} 10. d5 {[%clk 0:02:45]}  Nb4 {[%clk 0:02:50]} 11. O-O-O {[%clk 0:02:40]}  Qe7 {[%clk 0:02:50]} 12. d6 {[%clk 0:02:27]}  cxd6 {[%clk 0:02:50]} 13. Bxb6 {[%clk 0:02:27]}  Rc8 {[%clk 0:02:43]} 14. Bd4 {[%clk 0:02:13]}  Bxd4 {[%clk 0:02:14]} 15. Rxd4 {[%clk 0:02:14]}  d5 {[%clk 0:02:14]} 16. exd5 {[%clk 0:01:55]}  Nf5 {[%clk 0:02:13]} 17. Rc4 {[%clk 0:01:45]}  O-O {[%clk 0:02:05]} 18. g4 {[%clk 0:01:08]}  hxg4 {[%clk 0:02:04]} 19. Qxg4 {[%clk 0:01:05]}  Nxd5 {[%clk 0:02:04]} 20. h5 {[%clk 0:00:59]}  Rxc4 {[%clk 0:01:53]} 21. Bxc4 {[%clk 0:00:58]}  Nf6 {[%clk 0:01:53]} 22. Qh3 {[%clk 0:00:49]}  Bxh1 {[%clk 0:01:50]} 23. hxg6 {[%clk 0:00:48]}  fxg6 {[%clk 0:01:33]} 24. Qxh1 {[%clk 0:00:47]}  Nh5 {[%clk 0:01:33]} 25. Qg1 {[%clk 0:00:30]}  Kg7 {[%clk 0:01:25]} 26. Bd3 {[%clk 0:00:30]}  Nf4 {[%clk 0:01:23]} 27. Bxa6 {[%clk 0:00:25]}  d5 {[%clk 0:01:18]} 28. Nf3 {[%clk 0:00:19]}  e5 {[%clk 0:01:19]} 29. Nd2 {[%clk 0:00:14]}  e4 {[%clk 0:01:16]} 30. Qe1 {[%clk 0:00:11]}  Qf6 {[%clk 0:01:12]} 31. Bb5 {[%clk 0:00:10]}  Nd4 {[%clk 0:01:12]} 32. Kb1 {[%clk 0:00:09]}  Rc8 {[%clk 0:01:04]} 33. Nb3 {[%clk 0:00:08]}  Nxb3 {[%clk 0:01:02]} 34. cxb3 {[%clk 0:00:09]}  Qe5 {[%clk 0:01:02]} 35. a5 {[%clk 0:00:06]}  Qf5 {[%clk 0:00:55]} 36. Ka2 {[%clk 0:00:06]}  d4 {[%clk 0:00:50]} 37. Qxe4 {[%clk 0:00:06]}  dxc3 {[%clk 0:00:48]} 38. Qb7+ {[%clk 0:00:06]}  Kh6 {[%clk 0:00:48]} 39. Bd7 {[%clk 0:00:06]}  Qxa5+ {[%clk 0:00:47]} 40. Kb1 {[%clk 0:00:07]}  c2+ {[%clk 0:00:47]} 0-1


[Site "https://www.chess.com"]

[Event "Titled Tuesday Blitz April 19 Late 2022"]
[White "Potapova, Margarita"]
[Black "Romero Ruscalleda, Josep"]
[WhiteFideId "14126869"]
[BlackFideId "2231859"]
[WhiteElo "2216"]
[BlackElo "2308"]
[Result "1-0"]
[Round "01"]
[TimeControl "180+1"]
[Date "2022.04.19"]
[WhiteClock "0:00:17"]
[BlackClock "0:00:01"]

1. d4 {[%clk 0:02:54]}  g6 {[%clk 0:03:00]} 2. e4 {[%clk 0:02:52]}  Bg7 {[%clk 0:03:01]} 3. Nc3 {[%clk 0:02:51]}  d6 {[%clk 0:03:01]} 4. Be3 {[%clk 0:02:52]}  a6 {[%clk 0:03:02]} 5. h4 {[%clk 0:02:50]}  h5 {[%clk 0:03:01]} 6. Nh3 {[%clk 0:02:49]}  b5 {[%clk 0:03:01]} 7. Ng5 {[%clk 0:02:48]}  Nf6 {[%clk 0:02:57]} 8. f3 {[%clk 0:02:45]}  O-O {[%clk 0:02:50]} 9. Qd2 {[%clk 0:02:45]}  e5 {[%clk 0:02:48]} 10. dxe5 {[%clk 0:02:41]}  dxe5 {[%clk 0:02:47]} 11. O-O-O {[%clk 0:02:41]}  Qxd2+ {[%clk 0:02:46]} 12. Rxd2 {[%clk 0:02:40]}  Nc6 {[%clk 0:02:35]} 13. Bc5 {[%clk 0:02:37]}  Re8 {[%clk 0:02:34]} 14. a4 {[%clk 0:02:34]}  bxa4 {[%clk 0:01:50]} 15. Bc4 {[%clk 0:02:32]}  Be6 {[%clk 0:01:47]} 16. Bxe6 {[%clk 0:02:31]}  fxe6 {[%clk 0:01:47]} 17. Nxa4 {[%clk 0:02:32]}  Bh6 {[%clk 0:01:31]} 18. Be3 {[%clk 0:02:22]}  Nh7 {[%clk 0:01:29]} 19. Rd7 {[%clk 0:02:19]}  Re7 {[%clk 0:01:21]} 20. Rhd1 {[%clk 0:02:17]}  Rae8 {[%clk 0:01:20]} 21. Nc5 {[%clk 0:02:14]}  Nd4 {[%clk 0:01:15]} 22. c3 {[%clk 0:02:08]}  Rxd7 {[%clk 0:01:02]} 23. Nxd7 {[%clk 0:02:06]}  Rd8 {[%clk 0:00:53]} 24. Nc5 {[%clk 0:02:03]}  Ne2+ {[%clk 0:00:45]} 25. Kc2 {[%clk 0:02:01]}  Rxd1 {[%clk 0:00:36]} 26. Kxd1 {[%clk 0:02:01]}  Bxg5 {[%clk 0:00:34]} 27. hxg5 {[%clk 0:01:53]}  Nf4 {[%clk 0:00:34]} 28. Bxf4 {[%clk 0:01:21]}  exf4 {[%clk 0:00:34]} 29. Nxe6 {[%clk 0:01:22]}  Kf7 {[%clk 0:00:34]} 30. Nxf4 {[%clk 0:01:20]}  Nxg5 {[%clk 0:00:34]} 31. Nd5 {[%clk 0:01:17]}  Ne6 {[%clk 0:00:32]} 32. Ke2 {[%clk 0:01:17]}  a5 {[%clk 0:00:29]} 33. Ke3 {[%clk 0:01:14]}  c6 {[%clk 0:00:25]} 34. Nb6 {[%clk 0:01:12]}  h4 {[%clk 0:00:18]} 35. Nc4 {[%clk 0:01:12]}  a4 {[%clk 0:00:19]} 36. Nb6 {[%clk 0:01:12]}  Nc5 {[%clk 0:00:18]} 37. Kd4 {[%clk 0:01:13]}  Nb3+ {[%clk 0:00:16]} 38. Kc4 {[%clk 0:01:08]}  Nd2+ {[%clk 0:00:16]} 39. Kd3 {[%clk 0:01:08]}  Nxf3 {[%clk 0:00:13]} 40. Ke2 {[%clk 0:00:44]}  Ng5 {[%clk 0:00:13]} 41. Ke3 {[%clk 0:00:42]}  a3 {[%clk 0:00:12]} 42. bxa3 {[%clk 0:00:42]}  Ne6 {[%clk 0:00:12]} 43. a4 {[%clk 0:00:42]}  Nc5 {[%clk 0:00:12]} 44. a5 {[%clk 0:00:42]}  g5 {[%clk 0:00:12]} 45. Nc4 {[%clk 0:00:38]}  Kf6 {[%clk 0:00:09]} 46. Nd6 {[%clk 0:00:33]}  g4 {[%clk 0:00:08]} 47. Kf4 {[%clk 0:00:32]}  h3 {[%clk 0:00:08]} 48. gxh3 {[%clk 0:00:31]}  gxh3 {[%clk 0:00:09]} 49. Kg3 {[%clk 0:00:31]}  Ke5 {[%clk 0:00:09]} 50. Nb7 {[%clk 0:00:21]}  Nxb7 {[%clk 0:00:08]} 51. a6 {[%clk 0:00:21]}  Nd6 {[%clk 0:00:04]} 52. a7 {[%clk 0:00:20]}  Nxe4+ {[%clk 0:00:04]} 53. Kxh3 {[%clk 0:00:20]}  Nxc3 {[%clk 0:00:02]} 54. a8=Q {[%clk 0:00:20]}  Kd5 {[%clk 0:00:03]} 55. Kg2 {[%clk 0:00:20]}  Nb5 {[%clk 0:00:02]} 56. Kf1 {[%clk 0:00:19]}  Nd6 {[%clk 0:00:02]} 57. Qg8+ {[%clk 0:00:19]}  Kc5 {[%clk 0:00:02]} 58. Ke2 {[%clk 0:00:20]}  Nc4 {[%clk 0:00:02]} 59. Kd3 {[%clk 0:00:20]}  Nd6 {[%clk 0:00:02]} 60. Kc3 {[%clk 0:00:20]}  Kb6 {[%clk 0:00:01]} 61. Qb8+ {[%clk 0:00:19]}  Nb7 {[%clk 0:00:01]} 62. Qh8 {[%clk 0:00:18]}  Kc5 {[%clk 0:00:01]} 63. Qd4+ {[%clk 0:00:18]}  Kb5 {[%clk 0:00:01]} 64. Qc4+ {[%clk 0:00:18]}  Kb6 {[%clk 0:00:01]} 65. Qb4+ {[%clk 0:00:18]}  Kc7 {[%clk 0:00:01]} 66. Kc4 {[%clk 0:00:17]}  Nd6+ {[%clk 0:00:01]} 67. Kb3 {[%clk 0:00:17]}  Nb5 {[%clk 0:00:01]} 68. Qh4 {[%clk 0:00:17]}  Kb6 {[%clk 0:00:01]} 69. Kb4 {[%clk 0:00:17]} 1-0


[Site "https://www.chess.com"]